fUSD/lending_fUSD_20260329
["ID","MTS","AMOUNT","RATE_DAILY","PERIOD"]
[419045625,1774807841104,-151.0,0.00010823,2]
[419045626,1774807841114,-151.0,0.00010823,2]
[419045627,1774807841123,-151.0,0.00010823,2]
[419045628,1774807841133,-151.0,0.00010823,2]
[419045629,1774807841143,-151.0,0.00010823,2]
[419045630,1774807841153,-151.0,0.00010823,2]
[419045631,1774807841163,-151.0,0.00010823,2]
[419045632,1774807841175,-151.0,0.00010823,2]
[419045633,1774807841185,-1386.78395259,0.00010823,2]
[419045634,1774807841195,-151.0,0.00010823,2]
[419045635,1774807841205,-151.0,0.00010823,2]
[419045636,1774807841215,-151.0,0.00010823,2]
[419045637,1774807841225,-151.0,0.00010823,2]
[419045638,1774807841235,-151.0,0.00010823,2]
[419045639,1774807841246,-151.0,0.00010823,2]
[419045640,1774807841256,-154.08581197,0.00010823,2]
[419045641,1774807841266,-307.0,0.00010825,2]
[419045642,1774807841275,-173.174268,0.00010826,2]
[419045643,1774807841285,-204.07600257,0.00010828,3]
[419045644,1774807841295,-1080.18049598,0.00010828,3]
[419045645,1774807841305,-1917.0,0.00010842,2]
[419045646,1774807841315,-219.0,0.00010864,2]
[419045647,1774807841326,-500.0,0.00010873,2]
[419045648,1774807841336,-500.0,0.00010873,2]
[419045649,1774807841347,-500.0,0.00010873,2]
[419045650,1774807841367,-500.0,0.00010873,2]
[419045651,1774807841377,-500.0,0.00010873,2]
[419045652,1774807841387,-500.0,0.00010873,2]
[419045653,1774807841397,-500.0,0.00010873,2]
[419045654,1774807841407,-500.0,0.00010873,2]
[419045655,1774807841417,-500.0,0.00010873,2]
[419045656,1774807841427,-500.0,0.00010873,2]
[419045657,1774807841437,-1660.0,0.00010885,2]
[419045658,1774807841447,-5900.0,0.000109,3]
[419045659,1774807841457,-1900.0,0.000109,3]
[419045660,1774807841467,-1577.0,0.00010907,2]
[419045661,1774807841477,-1481.0,0.00010928,2]
[419045662,1774807841487,-246.0,0.0001095,2]
[419045663,1774807841496,-500.0,0.00010959,2]
[419045664,1774807841506,-150.0,0.00010959,2]
[419045665,1774807841517,-168.31887754,0.00010959,2]
[419045666,1774807841527,-532.0,0.00010971,2]
[419045667,1774807841537,-1500.0,0.00010979,2]
[419045668,1774807841547,-1973.0,0.00010993,2]
[419045669,1774807841561,-2195.48273165,0.00011,2]
[419045670,1774807841571,-190.12,0.00011,2]
[419045671,1774807841580,-167.0,0.00011014,2]
[419045672,1774807841590,-166.66727969,0.0001102,2]
[419045673,1774807841600,-1774.0,0.00011036,2]
[419045674,1774807841610,-948.31,0.00011048,2]
[419045675,1774807841620,-1744.0,0.00011057,2]
[419045676,1774807841631,-22083.94497858,0.00011099,2]
[419045677,1774807841641,-22083.9449785,0.00011099,2]
[419045678,1774807841651,-29096.92562771,0.00011099,2]
[419045679,1774807841661,-29096.92562771,0.00011099,2]
[419045680,1774807841670,-1600.0,0.00011121,2]
[419045681,1774807841680,-1900.0,0.00011174,2]
[419045682,1774807841690,-150.0,0.00011233,2]
[419045683,1774807841700,-156.77,0.00011234,2]
[419045684,1774807841710,-401.42,0.00011236,2]
[419045685,1774807841720,-1140.0,0.00011273,2]
[419045686,1774807841730,-2179.23,0.00011283,2]
[419045687,1774807841740,-359.6,0.00011286,2]
[419045688,1774807841750,-1000.0,0.00011321,2]
[419045689,1774807841761,-1000.0,0.00011321,2]
[419045690,1774807841771,-1000.0,0.00011321,2]
[419045691,1774807841781,-197.01734564,0.00011321,2]
[419045692,1774807841790,-1045.4146401,0.00011321,2]
[419045693,1774807841801,-200.0,0.00011371,2]
[419045694,1774807841811,-1438.09495884,0.00011371,2]
[419045695,1774807841821,-151.0,0.00011404,2]
[419045696,1774807841831,-592.21654029,0.00011421,2]
[419045697,1774807841840,-1000.0,0.00011421,2]
[419045698,1774807841851,-1000.0,0.00011421,2]
[419045699,1774807841860,-1000.0,0.00011421,2]
[419045700,1774807841870,-1000.0,0.00011421,2]
[419045701,1774807841880,-1000.0,0.00011421,2]
[419045702,1774807841889,-500.0,0.00011421,2]
[419045703,1774807841899,-1000.0,0.00011421,2]
[419045704,1774807841909,-1000.0,0.00011421,2]
[419045705,1774807841919,-1600.0,0.00011428,2]
[419045706,1774807841929,-1000.0,0.00011436,2]
[419045707,1774807841938,-1000.0,0.0001146,2]
[419045708,1774807841948,-29096.92562771,0.00011506,2]
[419045709,1774807841957,-944.1584157,0.00011508,2]
[419045710,1774807841967,-22083.9449785,0.00011533,2]
[419045711,1774807841977,-2500.0,0.0001155,2]
[419045712,1774807841987,-2500.0,0.0001155,2]
[419045713,1774807841997,-2500.0,0.0001155,2]
[419045714,1774807842006,-2500.0,0.0001155,2]
[419045715,1774807842016,-2500.0,0.0001155,2]
[419045716,1774807842027,-584.55025158,0.0001155,2]
[419045717,1774807842036,-250.0,0.0001155,2]
[419045718,1774807842046,-1376.62,0.00011634,2]
[419045719,1774807842056,-255.0,0.00011659,2]
[419045720,1774807842066,-1680.0,0.00011659,2]
[419045721,1774807842076,-433.33,0.00011827,30]
[419045722,1774807842086,-1829.225946,0.00011858,2]
[419045723,1774807842096,-1003.28384066,0.00011868,2]
[419045724,1774807842106,-4516.208101,0.00011892,2]
[419045725,1774807842115,-2750.6,0.00011901,2]
[419045726,1774807842125,-2750.6,0.00011901,2]
[419045727,1774807842134,-2750.6,0.00011901,2]
[419045728,1774807842144,-2750.6,0.00011901,2]
[419045729,1774807842154,-2750.6,0.00011901,2]
[419045730,1774807842163,-2750.6,0.00011901,2]
[419045731,1774807842173,-2750.6,0.00011901,2]
[419045732,1774807842182,-2750.6,0.00011901,2]
[419045733,1774807842191,-2750.6,0.00011901,2]
[419045734,1774807842201,-200.0,0.00011919,2]
[419045735,1774807842211,-1491.30447232,0.00011919,2]
[419045736,1774807842220,-1500.0,0.00011968,2]
[419045737,1774807842230,-1500.0,0.00011968,2]
[419045738,1774807842239,-500.0,0.00011968,2]
[419045739,1774807842249,-200.06015101,0.00011968,2]
[419045740,1774807842259,-1500.0,0.00011968,2]
[419045741,1774807842269,-1500.0,0.00011968,2]
[419045742,1774807842278,-22083.9449785,0.00011984,2]
[419045743,1774807842288,-29096.92562771,0.00011995,2]
[419045744,1774807842298,-14628.66223902,0.00012,7]
[419045745,1774807842308,-200.0,0.00012,2]
[419045746,1774807842318,-618.465,0.00012086,2]
[419045747,1774807842327,-150.99,0.00012087,2]
[419045748,1774807842337,-9999.99,0.00012087,2]
[419045765,1774807842781,-196.8843,0.000121,2]
[419045766,1774807842792,-160.152123,0.00012138,2]
[419045767,1774807842802,-1600.0,0.00012357,2]
[419045768,1774807842811,-944.1584157,0.00012386,2]
[419045769,1774807842822,-22083.9449785,0.00012436,2]
[419045770,1774807842832,-200.0,0.00012467,2]
[419045771,1774807842842,-1546.48273779,0.00012467,2]
[419045772,1774807842851,-29096.92562771,0.00012484,2]
[419045773,1774807842861,-2000.0,0.00012516,2]
[419045774,1774807842871,-500.0,0.00012516,2]
[419045775,1774807842881,-2000.0,0.00012516,2]
[419045776,1774807842891,-2000.0,0.00012516,2]
[419045777,1774807842901,-866.66,0.00012549,30]
[419045778,1774807842910,-1630.303032,0.00012739,2]
[419045779,1774807842920,-433.0,0.00012786,2]
[419045780,1774807842929,-2351.0,0.00012825,2]
[419045781,1774807842939,-22083.9449785,0.00012888,2]
[419045782,1774807842948,-29096.92562771,0.00012973,2]
[419045783,1774807842957,-58217.26008247,0.00012999,2]
[419045784,1774807842967,-250.0,0.00013,2]
[419045785,1774807842976,-200.0,0.00013015,2]
[419045786,1774807842986,-485.41550509,0.00013015,2]
[419045787,1774807842996,-1009.58099597,0.00013064,2]
[419045788,1774807843005,-2500.0,0.00013064,2]
[419045789,1774807843015,-2500.0,0.00013064,2]
[419045790,1774807843025,-1006.29,0.00013151,2]
[419045791,1774807843035,-156.77,0.00013179,2]
[419045792,1774807843044,-401.42,0.00013247,2]
[419045793,1774807843054,-944.1584157,0.00013265,2]
[419045794,1774807843063,-375.01701034,0.00013265,2]
[419045795,1774807843073,-1299.99,0.00013271,30]
[419045796,1774807843083,-2366.19845948,0.00013321,2]
[419045797,1774807843093,-22083.9449785,0.0001334,2]
[419045798,1774807843103,-151.0,0.00013443,5]
[419045799,1774807843113,-258.423,0.000135,2]
[419045800,1774807843123,-1000.0,0.000135,2]
[419045801,1774807843133,-151.0,0.00013562,2]
[419045802,1774807843143,-200.0,0.00013563,2]
[419045803,1774807843153,-1600.0,0.00013593,2]
[419045804,1774807843162,-3000.0,0.00013612,2]
[419045805,1774807843172,-200.7886617,0.00013612,2]
[419045806,1774807843182,-500.0,0.00013698,2]
[419045807,1774807843192,-500.0,0.00013698,2]
[419045808,1774807843202,-500.0,0.00013698,2]
[419045809,1774807843211,-500.0,0.00013698,2]
[419045810,1774807843221,-500.0,0.00013698,2]
[419045811,1774807843230,-500.0,0.00013698,2]
[419045812,1774807843240,-500.0,0.00013698,2]
[419045813,1774807843250,-583.31180057,0.00013698,2]
[419045814,1774807843259,-632.17718216,0.00013698,2]
[419045815,1774807843269,-507.40101098,0.00013698,2]
[419045816,1774807843279,-500.0,0.00013698,2]
[419045817,1774807843290,-500.0,0.00013698,2]
[419045818,1774807843300,-161.59374025,0.00013698,2]
[419045819,1774807843310,-500.0,0.00013698,2]
[419045820,1774807843320,-500.0,0.00013698,2]
[419045821,1774807843330,-500.0,0.00013698,2]
[419045822,1774807843339,-500.0,0.00013698,2]
[419045823,1774807843349,-500.0,0.00013698,2]
[419045824,1774807843358,-500.0,0.00013698,2]
[419045825,1774807843368,-500.0,0.00013698,2]
[419045826,1774807843378,-500.0,0.00013698,2]
[419045827,1774807843389,-616.44,0.00013698,2]
[419045828,1774807843398,-500.0,0.00013698,2]
[419045829,1774807843408,-500.0,0.00013698,2]
[419045830,1774807843418,-500.0,0.00013698,2]
[419045831,1774807843428,-500.0,0.00013698,2]
[419045832,1774807843438,-500.0,0.00013698,2]
[419045833,1774807843448,-500.0,0.00013698,2]
[419045834,1774807843458,-500.0,0.00013698,2]
[419045835,1774807843467,-500.0,0.00013698,2]
[419045836,1774807843478,-612.60409801,0.00013698,2]
[419045837,1774807843487,-504.98451162,0.00013698,2]
[419045838,1774807843497,-500.0,0.00013698,2]
[419045839,1774807843506,-500.0,0.00013698,2]
[419045841,1774807843516,-500.0,0.00013698,2]
[419045842,1774807843525,-500.0,0.00013698,2]
[419045843,1774807843534,-500.0,0.00013698,2]
[419045844,1774807843544,-500.0,0.00013698,2]
[419045845,1774807843554,-500.0,0.00013698,2]
[419045846,1774807843565,-381.48037858,0.00013698,2]
[419045847,1774807843574,-500.0,0.00013698,2]
[419045848,1774807843584,-500.0,0.00013698,2]
[419045849,1774807843595,-500.0,0.00013698,2]
[419045850,1774807843605,-500.0,0.00013698,2]
[419045851,1774807843615,-500.0,0.00013698,2]
[419045852,1774807843625,-500.0,0.00013698,2]
[419045853,1774807843635,-500.0,0.00013698,2]
[419045854,1774807843645,-500.0,0.00013698,2]
[419045855,1774807843654,-500.0,0.00013698,2]
[419045856,1774807843665,-500.0,0.00013698,2]
[419045857,1774807843675,-500.0,0.00013698,2]
[419045858,1774807843684,-500.0,0.00013698,2]
[419045859,1774807843694,-500.0,0.00013698,2]
[419045860,1774807843704,-500.0,0.00013698,2]
[419045861,1774807843714,-500.0,0.00013698,2]
[419045862,1774807843724,-500.0,0.00013698,2]
[419045863,1774807843733,-500.0,0.00013698,2]
[419045864,1774807843743,-500.0,0.00013698,2]
[419045865,1774807843753,-500.0,0.00013698,2]
[419045866,1774807843763,-500.0,0.00013698,2]
[419045867,1774807843773,-500.0,0.00013698,2]
[419045868,1774807843782,-1028.23,0.00013698,2]
[419045869,1774807843792,-1028.23,0.00013698,2]
[419045870,1774807843802,-1028.23,0.00013698,2]
[419045871,1774807843812,-1028.23,0.00013698,2]
[419045872,1774807843822,-1028.23,0.00013698,2]
[419045873,1774807843832,-1028.23,0.00013698,2]
[419045874,1774807843842,-1028.23,0.00013698,2]
[419045875,1774807843851,-1028.23,0.00013698,2]
[419045876,1774807843861,-1028.23,0.00013698,2]
[419045877,1774807843871,-1028.23,0.00013698,2]
[419045878,1774807843881,-1028.23,0.00013698,2]
[419045879,1774807843891,-1028.23,0.00013698,2]
[419045880,1774807843901,-1028.23,0.00013698,2]
[419045881,1774807843911,-1028.23,0.00013698,2]
[419045882,1774807843922,-1028.23,0.00013698,2]
[419045883,1774807843932,-1028.23,0.00013698,2]
[419045884,1774807843942,-1028.23,0.00013698,2]
[419045885,1774807843952,-500.0,0.00013698,2]
[419045886,1774807843962,-500.0,0.00013698,2]
[419045887,1774807843972,-500.0,0.00013698,2]
[419045888,1774807843982,-500.0,0.00013698,2]
[419045889,1774807843992,-500.0,0.00013698,2]
[419045890,1774807844001,-279.07,0.00013698,2]
[419045891,1774807844012,-500.0,0.00013698,2]
[419045892,1774807844022,-500.0,0.00013698,2]
[419045893,1774807844033,-500.0,0.00013698,2]
[419045894,1774807844043,-600.87743374,0.00013698,2]
[419045895,1774807844053,-500.0,0.00013698,2]
[419045896,1774807844063,-500.0,0.00013698,2]
[419045897,1774807844073,-500.0,0.00013698,2]
[419045898,1774807844083,-500.0,0.00013698,2]
[419045899,1774807844094,-500.0,0.00013698,2]
[419045900,1774807844104,-500.0,0.00013698,2]
[419045901,1774807844113,-500.0,0.00013698,2]
[419045902,1774807844122,-500.0,0.00013698,2]
[419045903,1774807844132,-392.60921824,0.00013698,2]
[419045904,1774807844142,-500.0,0.00013698,2]
[419045905,1774807844152,-500.0,0.00013698,2]
[419045906,1774807844162,-500.0,0.00013698,2]
[419045907,1774807844171,-500.0,0.00013698,2]
[419045908,1774807844181,-500.0,0.00013698,2]
[419045909,1774807844190,-500.0,0.00013698,2]
[419045910,1774807844199,-500.0,0.00013698,2]
[419045911,1774807844209,-500.0,0.00013698,2]
[419045912,1774807844219,-500.0,0.00013698,2]
[419045913,1774807844228,-500.0,0.00013698,2]
[419045914,1774807844238,-500.0,0.00013698,2]
[419045915,1774807844247,-500.0,0.00013698,2]
[419045916,1774807844256,-500.0,0.00013698,2]
[419045917,1774807844266,-500.0,0.00013698,2]
[419045918,1774807844276,-500.0,0.00013698,2]
[419045919,1774807844286,-500.0,0.00013698,2]
[419045920,1774807844296,-500.0,0.00013698,2]
[419045921,1774807844306,-500.0,0.00013698,2]
[419045922,1774807844316,-500.0,0.00013698,2]
[419045923,1774807844326,-500.0,0.00013698,2]
[419045924,1774807844336,-329.44503174,0.00013698,2]
[419045925,1774807844345,-500.0,0.00013698,2]
[419045926,1774807844354,-500.0,0.00013698,2]
[419045927,1774807844364,-500.0,0.00013698,2]
[419045928,1774807844373,-500.0,0.00013698,2]
[419045929,1774807844383,-500.0,0.00013698,2]
[419045930,1774807844393,-500.0,0.00013698,2]
[419045931,1774807844402,-614.55459126,0.00013698,2]
[419045932,1774807844412,-500.0,0.00013698,2]
[419045933,1774807844421,-500.0,0.00013698,2]
[419045934,1774807844431,-500.0,0.00013698,2]
[419045935,1774807844440,-500.0,0.00013698,2]
[419045936,1774807844450,-500.0,0.00013698,2]
[419045937,1774807844459,-500.0,0.00013698,2]
[419045938,1774807844469,-500.0,0.00013698,2]
[419045939,1774807844478,-500.0,0.00013698,2]
[419045940,1774807844488,-500.0,0.00013698,2]
[419045941,1774807844498,-500.0,0.00013698,2]
[419045942,1774807844507,-500.0,0.00013698,2]
[419045943,1774807844517,-500.0,0.00013698,2]
[419045944,1774807844527,-500.0,0.00013698,2]
[419045945,1774807844536,-500.0,0.00013698,2]
[419045946,1774807844546,-500.0,0.00013698,2]
[419045947,1774807844556,-500.0,0.00013698,2]
[419045948,1774807844566,-500.0,0.00013698,2]
[419045949,1774807844575,-500.0,0.00013698,2]
[419045950,1774807844584,-500.0,0.00013698,2]
[419045951,1774807844594,-500.0,0.00013698,2]
[419045952,1774807844603,-500.0,0.00013698,2]
[419045953,1774807844612,-500.0,0.00013698,2]
[419045954,1774807844622,-500.0,0.00013698,2]
[419045955,1774807844631,-500.0,0.00013698,2]
[419045956,1774807844641,-500.0,0.00013698,2]
[419045957,1774807844651,-476.77743701,0.00013698,2]
[419045958,1774807844660,-500.0,0.00013698,2]
[419045959,1774807844670,-500.0,0.00013698,2]
[419045960,1774807844680,-500.0,0.00013698,2]
[419045961,1774807844690,-500.0,0.00013698,2]
[419045962,1774807844699,-500.0,0.00013698,2]
[419045963,1774807844709,-500.0,0.00013698,2]
[419045964,1774807844719,-500.0,0.00013698,2]
[419045965,1774807844729,-500.0,0.00013698,2]
[419045966,1774807844738,-415.88455514,0.00013698,2]
[419045967,1774807844749,-500.0,0.00013698,2]
[419045968,1774807844758,-500.0,0.00013698,2]
[419045969,1774807844768,-500.0,0.00013698,2]
[419045970,1774807844777,-500.0,0.00013698,2]
[419045971,1774807844787,-500.0,0.00013698,2]
[419045972,1774807844797,-2910.72,0.00013699,2]
[419045973,1774807844807,-200.0,0.00013699,2]
[419045974,1774807844816,-500.0,0.00013699,2]
[419045975,1774807844825,-500.0,0.00013699,2]
[419045976,1774807844835,-500.0,0.00013699,2]
[419045977,1774807844845,-500.0,0.00013699,2]
[419045978,1774807844854,-500.0,0.00013699,2]
[419045979,1774807844863,-403.83679365,0.00013699,2]
[419045980,1774807844873,-549.5046014,0.00013699,2]
[419045981,1774807844882,-500.0,0.00013699,2]
[419045982,1774807844892,-227.36412512,0.00013699,2]
[419045983,1774807844901,-500.0,0.00013699,2]
[419045984,1774807844911,-500.0,0.00013699,2]
[419045985,1774807844921,-500.0,0.00013699,2]
[419045986,1774807844931,-500.0,0.00013699,2]
[419045987,1774807844940,-395.74377257,0.00013699,2]
[419045988,1774807844949,-500.0,0.00013699,2]
[419045989,1774807844959,-500.0,0.00013699,2]
[419045990,1774807844968,-500.0,0.00013699,2]
[419045991,1774807844978,-500.0,0.00013699,2]
[419045992,1774807844988,-500.0,0.00013699,2]
[419045993,1774807844997,-286.26486585,0.00013699,2]
[419045994,1774807845007,-500.0,0.00013699,2]
[419045995,1774807845016,-500.0,0.00013699,2]
[419045996,1774807845026,-500.0,0.00013699,2]
[419045997,1774807845035,-342.71585944,0.00013699,2]
[419045998,1774807845045,-500.0,0.00013699,2]
[419045999,1774807845056,-500.0,0.00013699,2]
[419046000,1774807845065,-500.0,0.00013699,2]
[419046001,1774807845075,-500.0,0.00013699,2]
[419046002,1774807845085,-500.0,0.00013699,2]
[419046003,1774807845095,-500.0,0.00013699,2]
[419046004,1774807845104,-500.0,0.00013699,2]
[419046005,1774807845114,-500.0,0.00013699,2]
[419046006,1774807845124,-500.37169193,0.00013699,2]
[419046007,1774807845133,-9999.99,0.00013699,2]
[419046008,1774807845143,-500.0,0.00013699,2]
[419046009,1774807845152,-222.34784204,0.00013699,2]
[419046010,1774807845162,-150.0,0.000137,2]
[419046011,1774807845171,-217.8882415,0.000137,2]
[419046012,1774807845181,-1602.93,0.000137,2]
[419046013,1774807845191,-22994.12,0.000137,2]
[419046014,1774807845200,-4789.28,0.000137,2]
[419046015,1774807845210,-4678.52,0.000137,2]
[419046016,1774807845220,-4373.32,0.000137,2]
[419046017,1774807845229,-3286.49,0.000137,2]
[419046018,1774807845239,-22083.9449785,0.00013791,2]
[419046019,1774807845249,-250.0,0.00013874,2]
[419046020,1774807845258,-4330.52,0.0001388,2]
[419046021,1774807845268,-5833.0,0.000139,5]
[419046022,1774807845278,-154.52171326,0.00013966,2]
[419046023,1774807845288,-1733.32,0.00013992,30]
[419046024,1774807845297,-200.0,0.00014,2]
[419046025,1774807845307,-164.31771956,0.00014,2]
[419046026,1774807845317,-736.0,0.00014029,2]
[419046027,1774807845327,-500.0,0.00014055,2]
[419046029,1774807845337,-3292.0,0.00014107,2]
[419046031,1774807845346,-200.0,0.00014111,2]
[419046033,1774807845356,-500.0,0.00014115,2]
[419046035,1774807845366,-1028.23,0.00014115,2]
[419046037,1774807845375,-60000.0,0.00014115,2]
[419046039,1774807845384,-944.1584157,0.00014143,2]
[419046041,1774807845393,-1139.53398762,0.0001416,2]
[419046043,1774807845403,-880.69,0.00014164,2]
[419046045,1774807845413,-784.86,0.00014219,2]
[419046047,1774807845422,-22083.9449785,0.00014243,2]
[419046049,1774807845433,-1000.0,0.00014247,2]
[419046051,1774807845443,-500.38478146,0.00014247,2]
[419046053,1774807845453,-1000.0,0.00014247,2]
[419046055,1774807845463,-1000.0,0.00014247,2]
[419046057,1774807845473,-1000.0,0.00014247,2]
[419046060,1774807845483,-1000.0,0.00014247,2]
[419046062,1774807845493,-1000.0,0.00014247,2]
[419046064,1774807845503,-1000.0,0.00014247,2]
[419046066,1774807845512,-1000.0,0.00014247,2]
[419046068,1774807845522,-1000.0,0.00014247,2]
[419046070,1774807845531,-1000.0,0.00014247,2]
[419046072,1774807845541,-1000.0,0.00014247,2]
[419046074,1774807845550,-910.58294734,0.00014247,2]
[419046076,1774807845560,-502.79991996,0.00014247,2]
[419046078,1774807845570,-724.83675979,0.00014247,2]
[419046079,1774807845579,-1000.0,0.00014247,2]
[419046080,1774807845588,-1000.0,0.00014247,2]
[419046081,1774807845598,-1000.0,0.00014247,2]
[419046082,1774807845606,-1000.0,0.00014247,2]
[419046083,1774807845616,-502.98896701,0.00014247,2]
[419046084,1774807845625,-1000.0,0.00014247,2]
[419046085,1774807845635,-1003.54904412,0.00014247,2]
[419046086,1774807845644,-1000.0,0.00014247,2]
[419046087,1774807845653,-1000.0,0.00014247,2]
[419046088,1774807845663,-420.26,0.00014327,2]
[419046089,1774807845672,-294.74,0.00014327,2]
[419046090,1774807845681,-417.75,0.00014327,2]
[419046091,1774807845691,-437.9142453,0.00014327,2]
[419046092,1774807845700,-2910.72,0.00014384,2]
[419046093,1774807845710,-160.0,0.00014387,2]
[419046094,1774807845719,-959.8630956,0.00014387,2]
[419046095,1774807845729,-160.0,0.00014387,2]
[419046096,1774807845739,-156.77,0.00014389,2]
[419046097,1774807845748,-10397.42105758,0.0001439,2]
[419046098,1774807845758,-1847.95,0.00014391,2]
[419046099,1774807845768,-880.69,0.00014438,2]
[419046100,1774807845777,-151.0,0.00014443,5]
[419046101,1774807845787,-784.86,0.00014493,2]
[419046102,1774807845796,-401.42,0.00014522,2]
[419046103,1774807845806,-30000.0,0.00014548,2]
[419046104,1774807845816,-607.35804992,0.000146,2]
[419046105,1774807845825,-200.0,0.00014659,2]
[419046106,1774807845835,-1270.708,0.00014686,2]
[419046107,1774807845844,-151.208,0.00014686,2]
[419046108,1774807845854,-22083.9449785,0.00014695,2]
[419046109,1774807845864,-880.69,0.00014712,2]
[419046110,1774807845873,-2166.65,0.00014714,30]
[419046111,1774807845883,-1219.67,0.00014736,2]
[419046112,1774807845892,-931.845,0.00014736,2]
[419046113,1774807845901,-1329.0,0.00014736,2]
[419046114,1774807845911,-2482.596,0.00014736,2]
[419046115,1774807845920,-6013.0,0.00014736,2]
[419046116,1774807845930,-294.74926422,0.00014748,2]
[419046117,1774807845939,-784.86,0.00014767,2]
[419046118,1774807845949,-500.0,0.00014795,2]
[419046119,1774807845958,-1500.0,0.00014795,2]
[419046120,1774807845969,-1500.0,0.00014795,2]
[419046121,1774807845978,-1500.0,0.00014795,2]
[419046122,1774807845988,-1332.25501618,0.00014795,2]
[419046123,1774807845998,-911.77279152,0.00014795,2]
[419046124,1774807846007,-1500.0,0.00014795,2]
[419046125,1774807846016,-1500.0,0.00014795,2]
[419046126,1774807846026,-1007.9229115,0.00014795,2]
[419046127,1774807846035,-1395.15417605,0.00014795,2]
[419046129,1774807846045,-1500.0,0.00014795,2]
[419046131,1774807846054,-1500.0,0.00014795,2]
[419046132,1774807846064,-500.0,0.00014795,2]
[419046133,1774807846073,-1500.0,0.00014795,2]
[419046134,1774807846083,-500.0,0.00014795,2]
[419046135,1774807846092,-1402.73289396,0.00014795,2]
[419046136,1774807846101,-685.01158904,0.00014795,2]
[419046137,1774807846110,-1500.0,0.00014795,2]
[419046138,1774807846119,-1500.0,0.00014795,2]
[419046139,1774807846129,-383.50988276,0.000148,2]
[419046140,1774807846138,-1600.0,0.00014828,2]
[419046141,1774807846147,-1000.0,0.00014865,2]
[419046142,1774807846157,-339.1963,0.000149,2]
[419046143,1774807846166,-1344.9105216,0.000149,2]
[419046144,1774807846176,-346.11340573,0.000149,2]
[419046145,1774807846186,-181.48576589,0.000149,2]
[419046146,1774807846196,-945.38,0.00014986,2]
[419046147,1774807846205,-300.0,0.00015,2]
[419046148,1774807846215,-2065.44755052,0.00015,2]
[419046149,1774807846224,-4998.82438298,0.00015,2]
[419046150,1774807846233,-8077.67315191,0.00015,2]
[419046151,1774807846243,-163.13010788,0.00015012,2]
[419046152,1774807846252,-944.1584157,0.00015022,2]
[419046153,1774807846261,-200.0,0.00015029,2]
[419046154,1774807846270,-200.0,0.00015029,2]
[419046155,1774807846279,-224.653,0.00015029,2]
[419046156,1774807846289,-250.0,0.00015029,2]
[419046157,1774807846299,-250.0,0.00015029,2]
[419046159,1774807846308,-196.331,0.00015029,2]
[419046161,1774807846317,-238.05,0.00015029,2]
[419046162,1774807846327,-162.713,0.00015029,2]
[419046163,1774807846336,-250.0,0.00015029,2]
[419046164,1774807846346,-193.362,0.00015029,2]
[419046165,1774807846356,-165.951,0.00015029,2]
[419046166,1774807846366,-214.712,0.00015029,2]
[419046167,1774807846375,-250.0,0.00015029,2]
[419046168,1774807846384,-179.0,0.00015029,2]
[419046169,1774807846394,-239.03,0.00015029,2]
[419046170,1774807846403,-1346.0,0.00015029,2]
[419046171,1774807846413,-1050.151,0.00015029,2]